[Event "Late-Titled-Tuesday-Blitz-November-28-2023"]
[Site "Chess.com"]
[Date "2023.11.28"]
[Round "7"]
[White "DvaHrasta"]
[Black "Hirna2005"]
[Result "1/2-1/2"]
[WhiteElo "2492"]
[BlackElo "2347"]
[TimeControl "180+1"]
[EndTime "15:14:05 PST"]
[Termination "Game drawn by repetition"]

1. c4 {[%clk 0:03:00.9]} 1... g6 {[%clk 0:03:00.5]} 2. g3 {[%clk 0:03:00.4]}
2... Bg7 {[%clk 0:03:00.9]} 3. Bg2 {[%clk 0:03:00.7]} 3... d6 {[%clk 0:03:01.4]}
4. Nc3 {[%clk 0:03:00.3]} 4... c5 {[%clk 0:03:00.8]} 5. Nf3 {[%clk 0:02:59.9]}
5... Nc6 {[%clk 0:03:00.5]} 6. O-O {[%clk 0:02:59.8]} 6... Nf6 {[%clk
0:03:00.1]} 7. d4 {[%clk 0:02:59.5]} 7... cxd4 {[%clk 0:02:59.6]} 8. Nxd4 {[%clk
0:02:59.7]} 8... Bd7 {[%clk 0:03:00]} 9. b3 {[%clk 0:02:57.5]} 9... O-O {[%clk
0:02:59.4]} 10. Bb2 {[%clk 0:02:57.7]} 10... Nxd4 {[%clk 0:02:51.1]} 11. Qxd4
{[%clk 0:02:56.7]} 11... Bc6 {[%clk 0:02:51.4]} 12. Nd5 {[%clk 0:02:49.8]} 12...
Nh5 {[%clk 0:02:46.9]} 13. Qd2 {[%clk 0:02:49]} 13... e6 {[%clk 0:02:35.5]} 14.
Bxg7 {[%clk 0:02:45]} 14... Nxg7 {[%clk 0:02:32.9]} 15. Ne3 {[%clk 0:02:41.5]}
15... Bxg2 {[%clk 0:02:32.5]} 16. Kxg2 {[%clk 0:02:41.8]} 16... Qc7 {[%clk
0:02:30.6]} 17. Rfd1 {[%clk 0:02:41.5]} 17... Rfd8 {[%clk 0:02:30.2]} 18. Rac1
{[%clk 0:02:40.3]} 18... a5 {[%clk 0:02:27.5]} 19. h4 {[%clk 0:02:36.6]} 19...
a4 {[%clk 0:02:26.3]} 20. b4 {[%clk 0:02:34.7]} 20... Qc6+ {[%clk 0:02:19.3]}
21. f3 {[%clk 0:02:33.4]} 21... h5 {[%clk 0:02:08.8]} 22. c5 {[%clk 0:02:28.2]}
22... dxc5 {[%clk 0:02:05.8]} 23. Qxd8+ {[%clk 0:02:27.7]} 23... Rxd8 {[%clk
0:02:05.9]} 24. Rxd8+ {[%clk 0:02:23.9]} 24... Kh7 {[%clk 0:02:05.6]} 25. Rxc5
{[%clk 0:02:18]} 25... Qb6 {[%clk 0:02:02.4]} 26. Rcc8 {[%clk 0:02:16.1]} 26...
g5 {[%clk 0:01:56.5]} 27. Nc4 {[%clk 0:01:59.2]} 27... Qxb4 {[%clk 0:01:52]} 28.
hxg5 {[%clk 0:01:57.4]} 28... Qe1 {[%clk 0:01:46.4]} 29. Rh8+ {[%clk 0:01:30.9]}
29... Kg6 {[%clk 0:01:45.7]} 30. Ne5+ {[%clk 0:01:14.4]} 30... Kf5 {[%clk
0:01:42.6]} 31. f4 {[%clk 0:01:10.8]} 31... Qxe2+ {[%clk 0:01:38.8]} 32. Kg1
{[%clk 0:01:10.7]} 32... Ke4 {[%clk 0:01:26.7]} 33. Rc4+ {[%clk 0:00:59.4]}
33... Ke3 {[%clk 0:01:25.4]} 34. Rd8 {[%clk 0:00:47.2]} 34... Qe1+ {[%clk
0:01:14.9]} 35. Kg2 {[%clk 0:00:41.1]} 35... Qf2+ {[%clk 0:01:14.4]} 36. Kh1
{[%clk 0:00:40.7]} 36... Qe1+ {[%clk 0:01:02.4]} 37. Kg2 {[%clk 0:00:38.7]}
37... Qe2+ {[%clk 0:01:01.1]} 38. Kg1 {[%clk 0:00:38]} 38... Qf2+ {[%clk
0:00:51.7]} 39. Kh1 {[%clk 0:00:37.6]} 39... Qe1+ {[%clk 0:00:39.6]} 40. Kg2
{[%clk 0:00:37.2]} 1/2-1/2

[Event "Late-Titled-Tuesday-Blitz-November-28-2023"]
[Site "Chess.com"]
[Date "2023.11.28"]
[Round "7"]
[White "noblerone"]
[Black "Harry_Rakkel"]
[Result "0-1"]
[WhiteElo "2489"]
[BlackElo "2664"]
[TimeControl "180+1"]
[EndTime "15:14:06 PST"]
[Termination "Harry_Rakkel won on time"]

1. e4 {[%clk 0:02:56]} 1... c5 {[%clk 0:02:58.8]} 2. Nf3 {[%clk 0:02:53.3]} 2...
e6 {[%clk 0:02:58.5]} 3. d4 {[%clk 0:02:48.4]} 3... cxd4 {[%clk 0:02:58.4]} 4.
Nxd4 {[%clk 0:02:49.3]} 4... Nc6 {[%clk 0:02:57.9]} 5. Nc3 {[%clk 0:02:44.2]}
5... Qc7 {[%clk 0:02:57.5]} 6. Ndb5 {[%clk 0:02:32.5]} 6... Qb8 {[%clk
0:02:56.2]} 7. Be3 {[%clk 0:02:32.7]} 7... a6 {[%clk 0:02:55.9]} 8. Bb6 {[%clk
0:02:33]} 8... axb5 {[%clk 0:02:55.8]} 9. Nxb5 {[%clk 0:02:33.9]} 9... Bb4+
{[%clk 0:02:55.2]} 10. c3 {[%clk 0:02:34.2]} 10... Ba5 {[%clk 0:02:55.2]} 11.
Nc7+ {[%clk 0:02:34.6]} 11... Qxc7 {[%clk 0:02:55.3]} 12. Bxc7 {[%clk
0:02:35.5]} 12... Bxc7 {[%clk 0:02:55.5]} 13. Qg4 {[%clk 0:02:34.8]} 13... g6
{[%clk 0:02:52.6]} 14. Be2 {[%clk 0:02:10.1]} 14... Nf6 {[%clk 0:02:41.6]} 15.
Qf3 {[%clk 0:02:01.6]} 15... Bd8 {[%clk 0:02:28]} 16. Qe3 {[%clk 0:01:53.6]}
16... Ra5 {[%clk 0:02:13.7]} 17. O-O {[%clk 0:01:46.3]} 17... Re5 {[%clk
0:02:10.6]} 18. f3 {[%clk 0:01:46.4]} 18... d5 {[%clk 0:01:52.8]} 19. Bd3 {[%clk
0:01:24.8]} 19... O-O {[%clk 0:01:38.9]} 20. b4 {[%clk 0:01:12.8]} 20... dxe4
{[%clk 0:01:28.1]} 21. fxe4 {[%clk 0:01:12.7]} 21... Nd5 {[%clk 0:01:23]} 22.
Qd2 {[%clk 0:01:07.9]} 22... Bb6+ {[%clk 0:01:17.3]} 23. Kh1 {[%clk 0:01:05.7]}
23... Ne3 {[%clk 0:01:07.7]} 24. Rf3 {[%clk 0:01:01.1]} 24... Ng4 {[%clk
0:01:01.2]} 25. h3 {[%clk 0:00:40.4]} 25... Rh5 {[%clk 0:00:57.4]} 26. Raf1
{[%clk 0:00:30.6]} 26... Nce5 {[%clk 0:00:55.8]} 27. Rg3 {[%clk 0:00:26.7]}
27... Bd7 {[%clk 0:00:48]} 0-1

[Event "Late-Titled-Tuesday-Blitz-November-28-2023"]
[Site "Chess.com"]
[Date "2023.11.28"]
[Round "7"]
[White "Goffredo_Fofi"]
[Black "Andrei_Skvortsov"]
[Result "0-1"]
[WhiteElo "2531"]
[BlackElo "2761"]
[TimeControl "180+1"]
[EndTime "15:14:08 PST"]
[Termination "Andrei_Skvortsov won by resignation"]

1. e4 {[%clk 0:03:00.9]} 1... d5 {[%clk 0:02:59.1]} 2. exd5 {[%clk 0:03:01]}
2... Qxd5 {[%clk 0:03:00]} 3. Nc3 {[%clk 0:03:01.5]} 3... Qe5+ {[%clk
0:03:00.3]} 4. Be2 {[%clk 0:02:59.2]} 4... Bg4 {[%clk 0:03:00]} 5. d4 {[%clk
0:02:57.1]} 5... Bxe2 {[%clk 0:03:00.2]} 6. Ngxe2 {[%clk 0:02:56.5]} 6... Qa5
{[%clk 0:03:00.8]} 7. O-O {[%clk 0:02:54.1]} 7... Nf6 {[%clk 0:03:00.6]} 8. d5
{[%clk 0:02:32.5]} 8... c6 {[%clk 0:03:00.5]} 9. Nf4 {[%clk 0:02:25.1]} 9...
cxd5 {[%clk 0:02:58.3]} 10. Nfxd5 {[%clk 0:02:26]} 10... Nxd5 {[%clk 0:02:58]}
11. Nxd5 {[%clk 0:02:26.9]} 11... Nc6 {[%clk 0:02:55.1]} 12. Bf4 {[%clk
0:02:23.1]} 12... O-O-O {[%clk 0:02:49.8]} 13. c4 {[%clk 0:02:03.9]} 13... e6
{[%clk 0:02:49.2]} 14. Bd2 {[%clk 0:01:35.9]} 14... Qa6 {[%clk 0:02:39.1]} 15.
Ne3 {[%clk 0:01:35.8]} 15... Bb4 {[%clk 0:02:37.8]} 16. Nd5 {[%clk 0:00:53.7]}
16... exd5 {[%clk 0:02:27.2]} 17. Bxb4 {[%clk 0:00:53.5]} 17... Nxb4 {[%clk
0:02:24.9]} 18. Qb3 {[%clk 0:00:54.2]} 18... Qb6 {[%clk 0:01:58.3]} 19. Rac1
{[%clk 0:00:50.6]} 19... dxc4 {[%clk 0:01:46.5]} 20. Rxc4+ {[%clk 0:00:38.1]}
20... Nc6 {[%clk 0:01:45.1]} 21. Qg3 {[%clk 0:00:38.6]} 21... g6 {[%clk
0:01:27.8]} 22. Rfc1 {[%clk 0:00:32]} 22... Qc7 {[%clk 0:01:25.7]} 23. Qc3
{[%clk 0:00:30.3]} 23... a6 {[%clk 0:01:15.6]} 24. b4 {[%clk 0:00:29.7]} 24...
Rhe8 {[%clk 0:01:14]} 25. a4 {[%clk 0:00:27.7]} 25... Rd5 {[%clk 0:01:13.6]} 26.
h3 {[%clk 0:00:25.2]} 26... Red8 {[%clk 0:01:11.3]} 27. Qb3 {[%clk 0:00:24.7]}
27... Qb6 {[%clk 0:01:04.1]} 28. Qg3 {[%clk 0:00:22.9]} 28... Rd1+ {[%clk
0:00:58.5]} 29. Rxd1 {[%clk 0:00:22.1]} 29... Rxd1+ {[%clk 0:00:59.4]} 30. Kh2
{[%clk 0:00:22.3]} 30... Rd4 {[%clk 0:00:54.9]} 31. a5 {[%clk 0:00:20]} 31...
Qc7 {[%clk 0:00:49.2]} 0-1

[Event "Late-Titled-Tuesday-Blitz-November-28-2023"]
[Site "Chess.com"]
[Date "2023.11.28"]
[Round "7"]
[White "wanyaland"]
[Black "Teidi96"]
[Result "1-0"]
[WhiteElo "2449"]
[BlackElo "2280"]
[TimeControl "180+1"]
[EndTime "15:14:10 PST"]
[Termination "wanyaland won by resignation"]

1. d4 {[%clk 0:02:54.1]} 1... Nf6 {[%clk 0:02:59.9]} 2. c4 {[%clk 0:02:53.1]}
2... e6 {[%clk 0:03:00.2]} 3. g3 {[%clk 0:02:52.9]} 3... d5 {[%clk 0:03:00.8]}
4. Bg2 {[%clk 0:02:53.1]} 4... Be7 {[%clk 0:03:00.2]} 5. Nf3 {[%clk 0:02:53.5]}
5... O-O {[%clk 0:02:59.7]} 6. O-O {[%clk 0:02:53.4]} 6... dxc4 {[%clk
0:02:57.1]} 7. Qc2 {[%clk 0:02:53.3]} 7... a6 {[%clk 0:02:57.8]} 8. a4 {[%clk
0:02:52.1]} 8... Bd7 {[%clk 0:02:55.5]} 9. Bg5 {[%clk 0:02:50.3]} 9... Bc6
{[%clk 0:02:56.1]} 10. Nbd2 {[%clk 0:02:43.8]} 10... a5 {[%clk 0:02:56.5]} 11.
Nxc4 {[%clk 0:02:38.6]} 11... Na6 {[%clk 0:02:56.8]} 12. Nce5 {[%clk 0:02:25]}
12... Be4 {[%clk 0:02:48.6]} 13. Qc1 {[%clk 0:02:20.4]} 13... c6 {[%clk
0:02:45.2]} 14. Rd1 {[%clk 0:02:07.8]} 14... Nb4 {[%clk 0:02:44.9]} 15. Qf4
{[%clk 0:01:40.5]} 15... Qd5 {[%clk 0:02:33.3]} 16. Rac1 {[%clk 0:01:23.6]}
16... Nh5 {[%clk 0:02:23.2]} 17. Qh4 {[%clk 0:01:21.7]} 17... Bxg5 {[%clk
0:02:20.9]} 18. Nxg5 {[%clk 0:01:14.4]} 18... Bxg2 {[%clk 0:02:19.3]} 19. Qxh5
{[%clk 0:01:08.6]} 19... h6 {[%clk 0:02:14.8]} 20. e4 {[%clk 0:00:47.7]} 20...
Bxe4 {[%clk 0:02:12]} 21. Rc5 {[%clk 0:00:47.1]} 21... Bg6 {[%clk 0:01:48.2]}
22. Nxg6 {[%clk 0:00:38.2]} 22... fxg6 {[%clk 0:01:48.3]} 23. Qxg6 {[%clk
0:00:34.2]} 23... hxg5 {[%clk 0:01:46.3]} 24. Rxd5 {[%clk 0:00:32.7]} 24... exd5
{[%clk 0:01:47.2]} 25. Qxg5 {[%clk 0:00:31.8]} 25... Rae8 {[%clk 0:01:44]} 26.
Rd2 {[%clk 0:00:31.9]} 26... Re4 {[%clk 0:01:31.7]} 27. Kg2 {[%clk 0:00:30]}
27... Na6 {[%clk 0:01:25.4]} 28. Qg6 {[%clk 0:00:28.2]} 28... Nc7 {[%clk
0:01:24.2]} 29. Qd6 {[%clk 0:00:26.3]} 29... Ne6 {[%clk 0:01:22.8]} 30. Qd7
{[%clk 0:00:20.5]} 30... Rf7 {[%clk 0:01:18.9]} 31. Qc8+ {[%clk 0:00:19.2]}
31... Kh7 {[%clk 0:01:17.4]} 32. Qa8 {[%clk 0:00:17.5]} 32... Nxd4 {[%clk
0:01:13.6]} 33. Qxa5 {[%clk 0:00:16.4]} 33... Nb3 {[%clk 0:01:14]} 34. Qc3
{[%clk 0:00:15.5]} 34... Nxd2 {[%clk 0:01:14.2]} 35. Qxd2 {[%clk 0:00:16.4]}
35... Kh8 {[%clk 0:01:13]} 36. b3 {[%clk 0:00:16]} 36... Rfe7 {[%clk 0:01:10.9]}
37. h4 {[%clk 0:00:15.4]} 37... Re2 {[%clk 0:01:11]} 38. Qg5 {[%clk 0:00:15.3]}
38... Rf7 {[%clk 0:01:09.7]} 39. Qh5+ {[%clk 0:00:13.1]} 39... Kg8 {[%clk
0:01:09.1]} 40. Qxe2 {[%clk 0:00:13.7]} 1-0

[Event "Late-Titled-Tuesday-Blitz-November-28-2023"]
[Site "Chess.com"]
[Date "2023.11.28"]
[Round "7"]
[White "RodokininEV"]
[Black "Rodalquilar"]
[Result "0-1"]
[WhiteElo "2586"]
[BlackElo "2750"]
[TimeControl "180+1"]
[EndTime "15:14:21 PST"]
[Termination "Rodalquilar won by resignation"]

1. d4 {[%clk 0:03:00]} 1... d5 {[%clk 0:03:00.1]} 2. c4 {[%clk 0:02:58.8]} 2...
e6 {[%clk 0:03:00.5]} 3. Nc3 {[%clk 0:02:58.9]} 3... a6 {[%clk 0:03:00.7]} 4. c5
{[%clk 0:02:58.2]} 4... b6 {[%clk 0:03:00.6]} 5. cxb6 {[%clk 0:02:59.1]} 5... c5
{[%clk 0:03:01]} 6. e3 {[%clk 0:02:54.9]} 6... Nd7 {[%clk 0:02:55.2]} 7. Nf3
{[%clk 0:02:53.9]} 7... Qxb6 {[%clk 0:02:50.4]} 8. Be2 {[%clk 0:02:53.2]} 8...
Ngf6 {[%clk 0:02:50.9]} 9. O-O {[%clk 0:02:53]} 9... Be7 {[%clk 0:02:49.2]} 10.
Na4 {[%clk 0:02:52.7]} 10... Qa7 {[%clk 0:02:45.7]} 11. b3 {[%clk 0:02:50.6]}
11... cxd4 {[%clk 0:02:43.7]} 12. Nxd4 {[%clk 0:02:48.5]} 12... Bb7 {[%clk
0:02:38.6]} 13. Bb2 {[%clk 0:02:46.6]} 13... O-O {[%clk 0:02:38.7]} 14. Bd3
{[%clk 0:02:43.1]} 14... Rfc8 {[%clk 0:02:31.1]} 15. Qe2 {[%clk 0:02:40.1]}
15... Bf8 {[%clk 0:02:25.5]} 16. Rfc1 {[%clk 0:02:39.1]} 16... e5 {[%clk
0:02:16.2]} 17. Nf5 {[%clk 0:02:29.8]} 17... g6 {[%clk 0:02:16.6]} 18. Ng3
{[%clk 0:02:27.5]} 18... Bg7 {[%clk 0:02:04.3]} 19. Qd1 {[%clk 0:02:23.4]} 19...
h5 {[%clk 0:01:57.4]} 20. Nf1 {[%clk 0:02:17.5]} 20... Bc6 {[%clk 0:01:47.6]}
21. Be2 {[%clk 0:01:51.7]} 21... Qb7 {[%clk 0:01:41.1]} 22. Nc5 {[%clk
0:01:48.6]} 22... Nxc5 {[%clk 0:01:41.4]} 23. Rxc5 {[%clk 0:01:49.5]} 23... d4
{[%clk 0:01:37.2]} 24. exd4 {[%clk 0:01:22.4]} 24... Bxg2 {[%clk 0:01:36.7]} 25.
Rxc8+ {[%clk 0:01:23.3]} 25... Rxc8 {[%clk 0:01:36.7]} 26. dxe5 {[%clk
0:01:18.2]} 26... Ng4 {[%clk 0:01:33.7]} 27. Bxg4 {[%clk 0:01:02.4]} 27... hxg4
{[%clk 0:01:31.7]} 28. Qxg4 {[%clk 0:01:03.3]} 28... Bf3 {[%clk 0:01:30.8]} 29.
Qg3 {[%clk 0:00:58.2]} 29... Rc2 {[%clk 0:01:24.6]} 30. Bd4 {[%clk 0:00:57.2]}
30... Qe4 {[%clk 0:01:16.9]} 31. Be3 {[%clk 0:00:44.3]} 31... Bxe5 {[%clk
0:01:15.8]} 32. Qg5 {[%clk 0:00:44.7]} 32... Bxa1 {[%clk 0:01:12.7]} 33. Ng3
{[%clk 0:00:37.2]} 33... Qg4 {[%clk 0:00:59.1]} 34. Qd8+ {[%clk 0:00:30.2]}
34... Kg7 {[%clk 0:00:56]} 35. Bh6+ {[%clk 0:00:24.4]} 35... Kxh6 {[%clk
0:00:52]} 36. h4 {[%clk 0:00:13]} 36... Rc1+ {[%clk 0:00:46.9]} 37. Kh2 {[%clk
0:00:12.6]} 37... Rh1+ {[%clk 0:00:45]} 0-1

[Event "Late-Titled-Tuesday-Blitz-November-28-2023"]
[Site "Chess.com"]
[Date "2023.11.28"]
[Round "7"]
[White "serena-maria"]
[Black "zajka-molotok"]
[Result "0-1"]
[WhiteElo "2339"]
[BlackElo "2528"]
[TimeControl "180+1"]
[EndTime "15:14:28 PST"]
[Termination "zajka-molotok won on time"]

1. e4 {[%clk 0:03:00.9]} 1... c5 {[%clk 0:02:58.2]} 2. f4 {[%clk 0:03:00.5]}
2... Nc6 {[%clk 0:02:55.6]} 3. Bb5 {[%clk 0:02:59.7]} 3... Qc7 {[%clk
0:02:48.7]} 4. d3 {[%clk 0:02:49.6]} 4... g6 {[%clk 0:02:45.7]} 5. Nf3 {[%clk
0:02:48.1]} 5... Bg7 {[%clk 0:02:45.6]} 6. Nc3 {[%clk 0:02:40.8]} 6... e6 {[%clk
0:02:45.1]} 7. O-O {[%clk 0:02:34.5]} 7... Nge7 {[%clk 0:02:44.4]} 8. Be3 {[%clk
0:02:26.1]} 8... Nd4 {[%clk 0:02:43.5]} 9. Bxd4 {[%clk 0:02:25]} 9... cxd4
{[%clk 0:02:41.9]} 10. Ne2 {[%clk 0:02:24.4]} 10... Qb6 {[%clk 0:02:31.8]} 11.
Bc4 {[%clk 0:02:20.4]} 11... Nc6 {[%clk 0:02:26.2]} 12. e5 {[%clk 0:02:14.6]}
12... O-O {[%clk 0:02:22.7]} 13. Bb3 {[%clk 0:02:01.3]} 13... d6 {[%clk
0:02:20]} 14. exd6 {[%clk 0:01:58.9]} 14... Na5 {[%clk 0:02:13]} 15. Qd2 {[%clk
0:01:14.5]} 15... Nxb3 {[%clk 0:02:11]} 16. axb3 {[%clk 0:01:14.6]} 16... Qxd6
{[%clk 0:02:10.8]} 17. Ra4 {[%clk 0:01:14]} 17... Bd7 {[%clk 0:02:04.8]} 18. Ra5
{[%clk 0:01:13.2]} 18... b6 {[%clk 0:01:56.6]} 19. Rg5 {[%clk 0:01:07.8]} 19...
Bc6 {[%clk 0:01:50.4]} 20. Qe1 {[%clk 0:00:45.2]} 20... Rac8 {[%clk 0:01:47.6]}
21. Rg3 {[%clk 0:00:39.9]} 21... Bxf3 {[%clk 0:01:45.7]} 22. Rgxf3 {[%clk
0:00:34.5]} 22... Rxc2 {[%clk 0:01:45.4]} 23. Rh3 {[%clk 0:00:28.6]} 23... Rxb2
{[%clk 0:01:39.9]} 24. Ng3 {[%clk 0:00:22.8]} 24... Rc8 {[%clk 0:01:32.8]} 25.
Ne4 {[%clk 0:00:22.4]} 25... Qe7 {[%clk 0:01:31.9]} 26. Qg3 {[%clk 0:00:12.9]}
26... Rcc2 {[%clk 0:01:29.2]} 27. Nf2 {[%clk 0:00:09.4]} 27... Rxb3 {[%clk
0:01:18.7]} 28. Qf3 {[%clk 0:00:09.4]} 28... Qd8 {[%clk 0:01:14.5]} 29. Qe4
{[%clk 0:00:08]} 29... Rbb2 {[%clk 0:01:12.3]} 30. Rg3 {[%clk 0:00:07]} 30...
Qd5 {[%clk 0:01:11.1]} 31. Qe1 {[%clk 0:00:06]} 31... a5 {[%clk 0:01:07.6]} 32.
Ne4 {[%clk 0:00:04.7]} 32... a4 {[%clk 0:01:04.1]} 33. Qa1 {[%clk 0:00:04.1]}
33... b5 {[%clk 0:01:00.8]} 34. Qa3 {[%clk 0:00:04]} 34... Qd8 {[%clk
0:00:49.6]} 35. Nd6 {[%clk 0:00:01.8]} 35... Bf8 {[%clk 0:00:48.7]} 0-1

[Event "Late-Titled-Tuesday-Blitz-November-28-2023"]
[Site "Chess.com"]
[Date "2023.11.28"]
[Round "7"]
[White "Blackwhite017"]
[Black "Felix-Rose"]
[Result "0-1"]
[WhiteElo "2052"]
[BlackElo "2328"]
[TimeControl "180+1"]
[EndTime "15:14:34 PST"]
[Termination "Felix-Rose won by resignation"]

1. e4 {[%clk 0:03:00.9]} 1... e5 {[%clk 0:02:57.6]} 2. Nf3 {[%clk 0:03:00.2]}
2... Nc6 {[%clk 0:02:54.2]} 3. Bb5 {[%clk 0:03:00.5]} 3... a6 {[%clk 0:02:54.3]}
4. Ba4 {[%clk 0:03:00.7]} 4... Nf6 {[%clk 0:02:54.6]} 5. d3 {[%clk 0:03:01.1]}
5... b5 {[%clk 0:02:52.6]} 6. Bb3 {[%clk 0:03:01.1]} 6... Bc5 {[%clk 0:02:51.6]}
7. c3 {[%clk 0:02:57.9]} 7... d6 {[%clk 0:02:49.9]} 8. O-O {[%clk 0:02:54.4]}
8... Ba7 {[%clk 0:02:50.3]} 9. Nbd2 {[%clk 0:02:51.1]} 9... h6 {[%clk
0:02:48.2]} 10. a4 {[%clk 0:02:41.9]} 10... O-O {[%clk 0:02:42.6]} 11. h3 {[%clk
0:02:38.5]} 11... Be6 {[%clk 0:02:39.6]} 12. Bc2 {[%clk 0:02:35.1]} 12... d5
{[%clk 0:02:32]} 13. Qe2 {[%clk 0:02:02.9]} 13... Re8 {[%clk 0:01:54]} 14. Rd1
{[%clk 0:01:51.1]} 14... b4 {[%clk 0:01:51.1]} 15. a5 {[%clk 0:01:42.5]} 15...
d4 {[%clk 0:01:47.1]} 16. c4 {[%clk 0:01:32.2]} 16... Nd7 {[%clk 0:01:31.4]} 17.
Nh2 {[%clk 0:01:12.9]} 17... Nc5 {[%clk 0:01:29.6]} 18. Rf1 {[%clk 0:01:08.1]}
18... f5 {[%clk 0:01:18.9]} 19. exf5 {[%clk 0:00:31.4]} 19... Bxf5 {[%clk
0:01:19.8]} 20. Qf3 {[%clk 0:00:30.8]} 20... Qd7 {[%clk 0:01:14.5]} 21. g4
{[%clk 0:00:19.8]} 21... Bg6 {[%clk 0:01:08.9]} 22. Ba4 {[%clk 0:00:08.8]} 22...
Nxa4 {[%clk 0:01:06.6]} 23. Rxa4 {[%clk 0:00:09.7]} 23... e4 {[%clk 0:01:05.9]}
24. Nxe4 {[%clk 0:00:08.9]} 24... Ne5 {[%clk 0:01:06.2]} 25. Qd1 {[%clk
0:00:07.5]} 25... Nxd3 {[%clk 0:00:56.7]} 26. Ng3 {[%clk 0:00:07.2]} 26... Nxc1
{[%clk 0:00:49.4]} 27. Rxb4 {[%clk 0:00:06.2]} 27... Nd3 {[%clk 0:00:44.7]} 28.
Rb7 {[%clk 0:00:05.1]} 28... Qc6 {[%clk 0:00:41.2]} 0-1

[Event "Late-Titled-Tuesday-Blitz-November-28-2023"]
[Site "Chess.com"]
[Date "2023.11.28"]
[Round "7"]
[White "Goryachkina"]
[Black "dropstoneDP"]
[Result "0-1"]
[WhiteElo "2652"]
[BlackElo "2949"]
[TimeControl "180+1"]
[EndTime "15:14:45 PST"]
[Termination "dropstoneDP won on time"]

1. e4 {[%clk 0:02:59.8]} 1... e5 {[%clk 0:03:00.3]} 2. Nf3 {[%clk 0:02:59.8]}
2... Nf6 {[%clk 0:03:01.2]} 3. Nc3 {[%clk 0:02:59.1]} 3... Nc6 {[%clk
0:03:01.3]} 4. d4 {[%clk 0:02:59.5]} 4... exd4 {[%clk 0:03:02.2]} 5. Nxd4 {[%clk
0:03:00]} 5... Bb4 {[%clk 0:03:02.9]} 6. Nxc6 {[%clk 0:03:00.1]} 6... bxc6
{[%clk 0:03:03.8]} 7. Bd3 {[%clk 0:03:00.3]} 7... O-O {[%clk 0:03:04.4]} 8. O-O
{[%clk 0:03:00.3]} 8... d5 {[%clk 0:03:05.1]} 9. exd5 {[%clk 0:02:59.4]} 9...
cxd5 {[%clk 0:03:06]} 10. h3 {[%clk 0:02:59.2]} 10... c6 {[%clk 0:03:05.8]} 11.
Qf3 {[%clk 0:02:58.7]} 11... Bd6 {[%clk 0:03:06.4]} 12. Re1 {[%clk 0:02:56.5]}
12... Be6 {[%clk 0:03:06.3]} 13. Ne2 {[%clk 0:02:48.8]} 13... Re8 {[%clk
0:02:51.7]} 14. Bg5 {[%clk 0:02:36.6]} 14... Be5 {[%clk 0:02:47.2]} 15. c3
{[%clk 0:02:28.6]} 15... h6 {[%clk 0:02:42.4]} 16. Bf4 {[%clk 0:02:18.9]} 16...
Bxf4 {[%clk 0:02:40.1]} 17. Nxf4 {[%clk 0:02:15.6]} 17... Qd6 {[%clk 0:02:40.4]}
18. Nh5 {[%clk 0:02:10.4]} 18... Nxh5 {[%clk 0:02:38.1]} 19. Qxh5 {[%clk
0:02:10.5]} 19... Bd7 {[%clk 0:02:38.7]} 20. Qf3 {[%clk 0:01:56.6]} 20... a5
{[%clk 0:02:34.8]} 21. Rad1 {[%clk 0:01:47.1]} 21... Rxe1+ {[%clk 0:02:33.6]}
22. Rxe1 {[%clk 0:01:47]} 22... a4 {[%clk 0:02:34]} 23. Qe3 {[%clk 0:01:42]}
23... Be6 {[%clk 0:02:29]} 24. Qb6 {[%clk 0:01:15.2]} 24... Rb8 {[%clk 0:02:27]}
25. Qa7 {[%clk 0:01:07.3]} 25... Rxb2 {[%clk 0:02:22]} 26. Qxa4 {[%clk
0:01:07.1]} 26... Rb8 {[%clk 0:02:20.9]} 27. Qa7 {[%clk 0:01:06.3]} 27... c5
{[%clk 0:02:11.9]} 28. a4 {[%clk 0:01:03.7]} 28... d4 {[%clk 0:02:09.2]} 29.
cxd4 {[%clk 0:00:55.5]} 29... Rd8 {[%clk 0:02:09.7]} 30. a5 {[%clk 0:00:45.7]}
30... Qxd4 {[%clk 0:02:09.3]} 31. Bf1 {[%clk 0:00:44.7]} 31... Qb4 {[%clk
0:01:54.4]} 32. Rc1 {[%clk 0:00:41.3]} 32... c4 {[%clk 0:01:54.3]} 33. Qb6
{[%clk 0:00:33.8]} 33... Rb8 {[%clk 0:01:38.8]} 34. Qc7 {[%clk 0:00:15.7]} 34...
Rc8 {[%clk 0:01:35.8]} 35. Qb6 {[%clk 0:00:15.6]} 35... Qa3 {[%clk 0:01:30.5]}
36. Re1 {[%clk 0:00:13.7]} 36... c3 {[%clk 0:01:21.9]} 37. Rxe6 {[%clk
0:00:07.5]} 37... c2 {[%clk 0:01:22.3]} 38. Re1 {[%clk 0:00:04.8]} 38... c1=Q
{[%clk 0:01:15.3]} 39. Rxc1 {[%clk 0:00:05]} 39... Rxc1 {[%clk 0:01:16.2]} 40.
Qb5 {[%clk 0:00:04.2]} 40... g6 {[%clk 0:01:14.5]} 41. a6 {[%clk 0:00:04.3]}
41... Qa1 {[%clk 0:01:13]} 42. f3 {[%clk 0:00:03]} 42... Kg7 {[%clk 0:01:11.2]}
43. h4 {[%clk 0:00:01.8]} 43... Qd4+ {[%clk 0:01:11.2]} 44. Kh2 {[%clk
0:00:01.5]} 44... Qxh4+ {[%clk 0:01:11.9]} 45. Kg1 {[%clk 0:00:02]} 45... Qd4+
{[%clk 0:01:12.5]} 46. Kh2 {[%clk 0:00:02.3]} 46... Rc5 {[%clk 0:01:12.7]} 47.
Qb7 {[%clk 0:00:01.1]} 47... Rh5+ {[%clk 0:01:11.8]} 0-1